bitfinex/quotes_ETHUSD_20251212
["timestamp","ask_amount","ask_price","bid_price","bid_amount"]
[1765556591406,0.4644,3063.7,3062.2,9.79687806]
[1765556592008,0.4644,3063.7,3062.3,0.58047529]
[1765556592308,0.4644,3063.7,3062.4,1.03773534]
[1765556592659,0.4644,3063.7,3061.8,0.1813]
[1765556592660,28.270545,3063.5,3061.2,0.586]
[1765556592813,0.58047529,3063.2,3061.2,0.586]
[1765556593007,0.98597929,3063.6,3061.4,3.26637723]
[1765556593008,2.039217,3062.9,3061.4,3.26637723]
[1765556593250,0.03274087,3062.8,3061.4,3.26637723]
[1765556593449,1.22847529,3062.8,3061.4,6.53285661]
[1765556593612,0.4644,3062.7,3061.4,6.53285661]
[1765556594039,0.03274087,3062.6,3061.4,3.26637723]
[1765556594344,8.100824,3062.4,3061.1,3.26670307]
[1765556594653,0.81335649,3062.3,3060.7,0.1813]
[1765556594819,2.933171,3062.4,3060.9,3.26700592]
[1765556595010,6.56377963,3062.3,3060.8,3.26711589]
[1765556595212,0.1836,3062.8,3060.8,9.80135529]
[1765556595213,0.4644,3062.6,3060.8,9.80135529]
[1765556595409,0.4644,3062.6,3060.9,0.58047529]
[1765556595638,0.4644,3062.6,3061.0,1.03818306]
[1765556595855,9.38565287,3062.5,3060.8,3.26711589]
[1765556596147,13.5254269,3062.6,3060.3,0.1813]
[1765556596358,13.5254269,3062.6,3059.7,3.26819731]
[1765556596359,0.58047529,3061.7,3059.7,3.26819731]
[1765556596553,0.07196127,3062.3,3059.4,0.1813]
[1765556596554,0.61774087,3061.6,3060.6,3.26731573]
[1765556596711,0.58047529,3061.4,3059.4,0.1813]
[1765556597044,6.53381246,3061.0,3059.5,0.34499979]
[1765556597343,4.26711492,3061.3,3059.4,0.1813]
[1765556597344,0.4644,3061.3,3059.6,9.80520327]
[1765556597549,0.4722,3061.2,3059.6,9.80520327]
[1765556598216,0.4722,3061.2,3059.7,0.58047529]
[1765556598420,0.1836,3061.6,3060.1,0.58047529]
[1765556598646,6.71619629,3061.6,3060.1,0.58047529]
[1765556598943,0.4722,3061.5,3059.9,0.405504]
[1765556599144,0.4722,3061.5,3059.8,1.36540797]
[1765556599145,0.4722,3061.5,3060.1,0.58047529]
[1765556599348,3.73861823,3061.5,3060.0,6.5359477]
[1765556599563,0.39222182,3061.4,3060.0,7.65289508]
[1765556599846,0.4722,3061.5,3060.1,0.58047529]
[1765556600214,0.585,3062.1,3060.0,14.18884278]
[1765556600215,0.4934,3061.4,3060.2,0.0326776]
[1765556600533,2.82271229,3061.3,3059.4,0.1813]
[1765556600738,3.575029,3061.2,3059.4,0.1813]
[1765556600932,3.575029,3061.2,3059.8,3.26817592]
[1765556600933,2.611278,3061.0,3059.8,3.26817592]
[1765556601132,6.53402594,3060.9,3059.1,3.26888531]
[1765556601446,1.16447529,3060.8,3059.1,3.26888531]
[1765556601643,1.65787529,3060.8,3059.0,6.53808434]
[1765556601814,6.380878,3060.6,3059.0,6.53808434]
[1765556602015,0.4934,3060.5,3059.0,9.80712651]
[1765556602348,6.53402594,3060.9,3059.0,9.80712651]
[1765556602349,0.4934,3060.7,3059.1,0.58047529]
[1765556602653,0.583,3061.3,3059.4,0.58047529]
[1765556602849,0.4934,3061.2,3059.4,0.58047529]
[1765556603250,0.4934,3061.2,3059.6,0.58047529]
[1765556603459,0.1916,3061.7,3060.0,8.76377382]
[1765556603673,0.001,3062.5,3060.7,0.98597929]
[1765556603953,0.001,3062.5,3061.3,0.58047529]
[1765556604264,0.001,3062.5,3061.4,0.61946879]
[1765556604420,0.001,3062.5,3061.6,0.405504]
[1765556604620,0.001,3062.5,3062.0,0.58047529]
[1765556604821,0.001,3062.5,3061.6,1.06045581]
[1765556605062,0.001,3062.5,3061.6,0.21396266]
[1765556605268,0.001,3062.5,3061.7,6.53231864]
[1765556605630,0.001,3062.5,3061.7,9.79847796]
[1765556605954,0.001,3062.5,3062.1,0.58047529]
[1765556606526,0.001,3062.5,3062.2,0.1813]
[1765556606732,0.001,3062.5,3062.3,0.405504]
[1765556606950,0.001,3062.5,3062.2,1.17402491]
[1765556607121,0.001,3062.5,3062.4,3.26541274]
[1765556607336,0.001,3062.5,3062.4,10.41255703]
[1765556607651,0.001,3063.1,3062.7,0.98597929]
[1765556607966,1.0,3064.6,3063.1,0.98597929]
[1765556608120,1.0,3064.6,3062.8,0.582]
[1765556608323,0.685,3064.5,3062.6,0.405504]
[1765556608546,0.685,3064.5,3062.8,0.405504]
[1765556608756,0.4934,3064.4,3062.7,0.582]
[1765556609063,1.0,3064.6,3063.1,0.98597929]
[1765556609355,1.0,3064.6,3063.3,1.05794056]
[1765556609578,1.0,3064.6,3063.5,0.405504]
[1765556609779,1.0,3064.6,3063.4,0.582]
[1765556609780,1.0,3064.6,3064.3,0.405504]
[1765556610058,0.1916,3066.0,3064.9,0.58047529]
[1765556610232,1.001,3066.7,3065.6,0.58047529]
[1765556610445,1.001,3066.7,3065.1,8.76377382]
[1765556610642,0.4934,3066.5,3065.2,1.16247529]
[1765556610844,1.001,3066.7,3065.3,0.586804]
[1765556611055,1.001,3066.7,3065.8,0.58047529]
[1765556611257,1.001,3066.7,3066.1,0.405504]
[1765556611460,1.001,3066.7,3066.3,9.69502146]
[1765556611972,1.001,3066.7,3066.3,0.58047529]
[1765556612365,1.001,3066.7,3066.0,0.58047529]
[1765556612564,1.001,3066.7,3065.9,3.26168498]
[1765556612958,1.001,3066.7,3065.9,6.52336996]
[1765556613165,1.001,3066.7,3065.9,7.17570696]
[1765556613364,1.001,3066.7,3065.9,10.43739194]
[1765556613561,1.001,3066.7,3064.7,3.26285728]
[1765556613562,0.4944,3066.4,3064.7,3.26285728]
[1765556613863,0.4944,3066.4,3064.8,3.26279467]
[1765556614064,0.4944,3066.4,3064.5,0.582]
[1765556614251,0.4944,3066.4,3064.9,3.26270579]
[1765556614461,0.4944,3066.4,3065.9,3.2616763]
[1765556614765,0.4944,3066.4,3064.5,0.582]
[1765556614975,0.1916,3065.7,3064.6,0.38452572]
[1765556615275,3.26200417,3065.6,3063.4,8.89034217]
[1765556615479,3.26200417,3065.6,3063.8,0.581]
[1765556615480,0.4934,3065.6,3063.8,0.581]
[1765556615677,0.52614087,3065.5,3064.2,3.26346703]
[1765556615869,0.4934,3065.5,3063.8,0.581]
[1765556616191,0.4934,3065.5,3064.5,6.52634095]
[1765556616739,0.4934,3066.1,3064.6,0.581]
[1765556616875,0.1916,3065.9,3064.6,1.16147529]
[1765556617061,0.1916,3065.9,3064.6,0.581]
[1765556617260,0.4934,3065.8,3064.7,3.26296211]
[1765556617591,0.1916,3065.9,3064.7,9.78888633]
[1765556617756,0.4934,3065.8,3064.7,6.52592422]
[1765556618085,0.4934,3065.8,3064.7,9.78888633]
[1765556618266,0.4934,3065.8,3064.7,6.52592422]
[1765556618588,0.4934,3065.8,3064.7,3.26296211]
[1765556618883,0.4934,3065.8,3062.5,3.2652238]
[1765556618884,13.508885,3065.5,3063.8,3.26385893]
[1765556619053,13.154232,3065.3,3063.4,0.7623]
[1765556619255,0.98597929,3064.9,3063.3,3.26445336]
[1765556619455,0.98597929,3064.9,3062.1,8.70904217]
[1765556619456,4.726386,3064.4,3062.1,8.70904217]
[1765556619757,0.685,3064.3,3062.3,3.26547106]
[1765556619956,5.221393,3064.2,3062.5,3.26523511]
[1765556620176,5.221393,3064.2,3063.2,3.26453299]
[1765556620177,0.4934,3064.2,3063.2,3.26453299]
[1765556620495,0.4934,3064.1,3062.6,3.26509346]
[1765556620706,0.4934,3064.1,3062.7,0.32650935]
[1765556620866,0.4934,3064.1,3063.2,6.52905859]
[1765556621069,0.4934,3064.1,3063.3,0.03264453]
[1765556621268,0.4934,3064.1,3063.0,3.26473695]
[1765556621567,0.4934,3064.1,3062.9,3.26487968]
[1765556621783,0.4934,3064.1,3063.3,0.002]
[1765556621784,10.28435393,3064.1,3063.3,0.002]
[1765556621995,2.688469,3063.9,3063.3,0.002]
[1765556622198,2.10231068,3064.0,3063.3,0.002]
[1765556622504,2.10231068,3064.0,3063.0,0.002]
[1765556622505,2.146223,3063.5,3063.0,0.002]
[1765556622702,0.4934,3063.9,3063.0,0.002]
[1765556622703,0.58047529,3063.7,3063.0,0.002]
[1765556623004,7.442991,3063.5,3063.0,0.002]
[1765556623207,0.40710543,3063.7,3061.5,3.26637208]
[1765556623208,0.405504,3063.2,3061.5,3.26637208]
[1765556623411,0.58,3063.1,3061.0,8.70904217]
[1765556623577,0.58047529,3063.5,3061.7,0.58047529]
[1765556623901,0.4934,3063.4,3061.7,0.58047529]
[1765556624302,0.4934,3063.4,3061.4,0.58]
[1765556624703,0.98597929,3063.2,3061.1,0.87090422]
[1765556625006,8.05414,3062.9,3060.8,6.5342394]
[1765556625215,0.58047529,3062.6,3060.8,6.5342394]
[1765556625368,3.26520483,3062.6,3060.8,13.0684788]
[1765556625705,0.685,3062.5,3060.9,0.58047529]
[1765556625902,1.26547529,3062.5,3060.8,6.5342394]
[1765556626089,0.4934,3062.4,3060.9,0.67215394]
[1765556626273,0.4934,3062.4,3060.9,1.25262923]
[1765556626468,0.4934,3062.4,3060.9,0.67215394]
[1765556626469,4.747775,3062.3,3060.9,0.67215394]
[1765556626668,7.047819,3062.1,3060.7,6.53443805]
[1765556626881,0.1916,3062.5,3060.7,6.53443805]
[1765556626882,4.984665,3061.9,3060.7,3.2672116]
[1765556627082,0.579,3061.8,3060.7,3.2672116]
[1765556627282,0.579,3061.8,3060.4,0.58047529]
[1765556627488,0.4934,3061.7,3060.4,0.58047529]
[1765556627775,0.4934,3061.7,3060.5,0.38480777]
[1765556628097,0.4934,3061.7,3060.3,0.58047529]
[1765556629276,0.1916,3062.5,3061.1,16.33399755]
[1765556629486,0.4934,3062.4,3061.2,0.58047529]
[1765556630282,0.4934,3062.4,3060.4,0.578]
[1765556630283,0.1904,3061.3,3060.4,0.578]
[1765556630482,0.1904,3061.3,3061.0,3.26689326]
[1765556630706,0.1904,3061.3,3060.0,0.578]
[1765556630870,0.6763,3061.3,3060.0,0.578]
[1765556631201,0.6763,3061.3,3060.9,3.26699573]
[1765556631370,0.6763,3061.3,3060.1,9.80360118]
[1765556631573,0.6763,3061.3,3060.2,1.03816012]
[1765556631804,0.6763,3061.3,3060.2,1.61863541]
[1765556632782,0.4859,3061.2,3060.2,1.61863541]
[1765556633382,0.4859,3061.2,3060.3,6.53530698]
[1765556633802,7.01938462,3061.2,3060.2,3.26772678]
[1765556634006,8.31736308,3061.2,3059.1,0.0937]
[1765556634189,0.1904,3060.1,3058.8,3.26925591]
[1765556634400,0.1904,3060.1,3058.8,6.53851182]
[1765556634599,0.4859,3060.0,3058.8,6.53851182]
[1765556635538,3.75390258,3060.0,3058.2,13.07958928]
[1765556635831,3.7538819,3060.0,3058.3,1.30795893]
[1765556635998,0.4859,3059.9,3058.6,0.58047529]
[1765556636199,0.1904,3060.1,3058.6,0.58047529]
[1765556636521,0.6763,3060.1,3058.6,0.58047529]
[1765556636910,0.47746527,3061.1,3058.6,0.58047529]
[1765556636911,0.4859,3060.6,3059.1,0.58047529]
[1765556637089,0.4859,3060.6,3059.2,0.78626641]
[1765556637598,3.75323348,3060.6,3059.3,6.5374432]
[1765556637800,0.1904,3059.4,3058.2,3.26989732]
[1765556638318,0.1904,3059.4,3058.9,3.26913808]
[1765556638499,0.1904,3059.4,3059.2,3.26882511]
[1765556638830,0.1904,3059.4,3059.2,3.26882016]
[1765556638999,0.1904,3059.8,3059.2,6.53764861]
[1765556639204,0.1904,3060.3,3059.2,14.05596811]
[1765556639395,0.1904,3060.3,3059.3,0.58047529]
[1765556639791,0.4859,3060.8,3059.3,0.58047529]
[1765556640313,0.03274087,3061.0,3059.4,0.592804]
[1765556640517,0.4859,3062.1,3060.0,0.58047529]
[1765556640728,3.7325163,3062.3,3059.5,0.60768507]
[1765556640729,0.1904,3061.4,3059.7,0.1873]
[1765556640935,0.1904,3061.4,3059.5,1.15547529]
[1765556641220,0.37325163,3062.2,3059.5,1.15547529]
[1765556641221,0.4859,3061.8,3060.0,0.98597929]
[1765556641420,0.4859,3062.4,3061.0,13.06762492]
[1765556641621,3.75131713,3062.4,3061.0,6.53381246]
[1765556641826,0.88019171,3062.4,3061.0,7.57140052]
[1765556641992,0.1904,3061.1,3060.9,3.26699688]
[1765556642195,0.1904,3061.1,3060.6,3.26722835]
[1765556642402,0.1904,3061.1,3059.9,3.26807964]
[1765556642602,0.6763,3061.1,3059.7,0.0937]
[1765556642803,0.6763,3061.1,3060.8,3.26702767]
[1765556643123,0.1904,3061.5,3060.9,6.53401545]
[1765556643500,0.4859,3062.3,3060.9,9.80102842]
[1765556643803,3.38555406,3064.2,3060.9,9.80102842]
[1765556643804,0.1904,3063.2,3061.6,0.98597929]
[1765556644143,0.1904,3063.2,3061.6,1.56097929]
[1765556644297,0.1904,3063.2,3061.7,0.1873]
[1765556644492,0.1904,3063.6,3061.8,0.17482793]
[1765556644738,0.1904,3061.7,3059.7,3.36196267]
[1765556644895,9.018887,3061.4,3059.9,3.26805575]
[1765556645238,0.58047529,3061.5,3059.4,0.575]
[1765556645239,0.1904,3060.0,3059.4,0.575]
[1765556645405,0.405504,3060.6,3058.7,3.2693628]
[1765556645607,0.1904,3059.9,3058.7,9.8080884]
[1765556646202,0.4859,3060.5,3058.7,9.8080884]
[1765556646203,0.1904,3060.3,3058.8,0.03269255]
[1765556646400,0.1904,3060.3,3058.7,13.0774512]
[1765556646614,0.1904,3060.7,3059.1,0.58047529]
[1765556646815,0.4859,3060.6,3059.1,0.58047529]
[1765556647015,0.4859,3060.6,3058.9,0.575]
[1765556647311,0.4859,3060.6,3059.1,0.58047529]
[1765556647512,0.4859,3060.6,3059.3,0.58047529]
[1765556648335,0.4859,3060.6,3059.2,6.5376569]
[1765556648638,0.4859,3060.6,3059.2,9.80648535]
[1765556649002,0.4859,3060.6,3059.2,6.5376569]
[1765556649197,3.75327254,3060.6,3059.2,6.5376569]
[1765556649399,3.75323515,3060.6,3059.2,3.26882845]
[1765556649613,0.4859,3060.5,3059.2,3.26882845]
[1765556649812,0.4859,3060.5,3059.1,6.5378706]
[1765556650033,0.4859,3060.5,3059.1,9.8068059]
[1765556650406,0.4859,3060.5,3059.1,6.5378706]
[1765556651500,0.4859,3060.9,3059.2,0.58047529]
[1765556651739,0.4859,3060.9,3059.2,1.23426235]
[1765556652131,0.4859,3060.9,3059.2,0.65378706]
[1765556652305,0.03274087,3060.8,3059.3,0.574]
[1765556652505,0.4859,3060.7,3059.3,0.75482623]
[1765556652701,0.4859,3060.7,3059.0,6.53808434]
[1765556652702,5.339847,3060.6,3059.0,6.53808434]
[1765556652907,4.059395,3060.6,3059.0,6.53808434]
[1765556653123,0.4859,3060.5,3059.0,6.53808434]
[1765556653503,3.26754672,3060.4,3058.8,0.58047529]
[1765556653904,0.4859,3060.3,3058.8,0.58047529]
[1765556654131,0.70209934,3060.2,3058.8,0.58047529]
[1765556654304,0.4859,3060.3,3058.8,0.58047529]
[1765556654503,0.1904,3060.1,3058.8,0.58047529]
[1765556654935,0.6763,3060.1,3058.8,0.58047529]
[1765556655313,0.1904,3060.1,3058.8,0.58047529]
[1765556655509,0.1904,3060.5,3059.0,9.80712651]
[1765556655710,3.45787488,3060.5,3059.0,9.80712651]
[1765556655912,0.4859,3060.4,3059.1,0.573]
[1765556656635,0.4859,3060.4,3059.0,9.80712651]
[1765556656836,0.39437529,3060.3,3059.1,0.573]
[1765556657238,0.4859,3060.2,3059.0,3.26904217]
[1765556657437,0.4859,3060.2,3059.0,6.53808434]
[1765556657746,0.4859,3060.2,3056.9,0.002]
[1765556657747,0.1808,3059.1,3056.9,0.002]
[1765556658039,0.1808,3059.1,3058.6,3.26943458]
[1765556658040,0.6485,3059.1,3058.6,3.26943458]
[1765556658242,0.4677,3059.7,3058.6,6.53890427]
[1765556658541,0.4677,3059.7,3058.6,9.80837396]
[1765556658708,0.4677,3059.7,3058.6,13.07784365]
[1765556658914,0.1808,3060.0,3058.7,1.89762965]
[1765556659309,0.4677,3059.9,3058.6,9.80837396]
[1765556659753,3.73579341,3059.9,3058.4,0.58047529]
[1765556660048,0.4677,3059.9,3058.4,0.58047529]
[1765556660236,0.4677,3059.9,3058.5,0.572]
[1765556660411,0.4677,3059.9,3058.6,0.572]
[1765556660738,0.4677,3059.9,3058.5,0.572]
[1765556660940,0.4677,3059.9,3058.5,7.86027012]
[1765556661246,0.4564,3060.8,3059.0,7.28827012]
[1765556661443,0.4564,3060.8,3059.1,0.58047529]
[1765556661632,0.4564,3061.4,3059.7,16.34147135]
[1765556661834,0.1904,3061.7,3060.4,0.0937]
[1765556662142,0.6468,3061.7,3060.4,0.0937]
[1765556662346,0.6468,3061.7,3060.5,0.572]
[1765556662838,3.91295983,3061.7,3060.5,0.572]
[1765556663050,0.4564,3061.6,3059.9,0.0937]
[1765556663209,0.48914087,3061.6,3059.9,0.6647]
[1765556663754,0.48914087,3061.6,3059.9,0.571]
[1765556663915,3.26637269,3061.5,3060.0,9.80392155]
[1765556664111,3.72269873,3061.6,3060.0,9.80392155]
[1765556664410,0.88683947,3061.5,3060.1,1.36429244]
[1765556664659,0.88683947,3061.5,3060.1,0.571]
[1765556664869,0.4564,3061.4,3060.1,0.6647]
[1765556665016,0.4564,3061.4,3060.2,0.571]
[1765556665211,0.1904,3061.7,3060.3,0.58047529]
[1765556665457,0.4564,3061.6,3060.3,0.58047529]
[1765556666045,0.001,3062.4,3060.9,7.28827012]
[1765556666249,0.001,3062.4,3061.5,0.58047529]
[1765556667153,0.001,3062.4,3061.6,0.571]
[1765556667356,0.001,3062.4,3061.9,7.28827012]
[1765556667571,0.001,3062.4,3062.0,0.58047529]
[1765556667856,0.001,3062.4,3062.1,0.405504]
[1765556668017,0.001,3062.4,3062.3,0.58047529]
[1765556668429,0.001,3062.4,3062.3,8.46154941]
[1765556668646,0.001,3062.4,3062.3,8.05604541]
[1765556669149,0.001,3062.4,3062.3,0.58047529]
[1765556669336,0.001,3062.4,3062.3,1.15047529]
[1765556669850,0.001,3062.4,3062.3,7.11527718]
[1765556670017,0.001,3064.0,3062.6,10.33545]
[1765556670221,0.001,3064.0,3062.4,0.405504]
[1765556670222,0.001,3064.0,3063.5,0.58047529]
[1765556670846,0.001,3064.0,3063.6,0.7563]
[1765556671026,0.001,3064.0,3063.5,0.58047529]
[1765556671227,0.001,3064.0,3063.6,0.569]
[1765556671952,0.001,3064.0,3063.7,6.5280543]
[1765556672143,0.001,3064.0,3063.8,0.569]
[1765556672652,0.001,3064.0,3063.9,8.43774541]
[1765556672867,0.4564,3065.7,3064.0,0.98597929]
[1765556673080,0.4564,3065.7,3064.4,7.28827012]
[1765556673654,0.03274087,3065.6,3064.1,1.00165287]
[1765556673841,0.03274087,3065.6,3064.0,0.58047529]
[1765556674051,3.71851058,3065.5,3064.1,10.35980315]
[1765556674243,0.4564,3065.5,3064.1,10.35980315]
[1765556674942,0.4564,3065.5,3064.1,6.5272021]
[1765556675170,0.4564,3065.5,3064.2,0.568]
[1765556675369,0.86098434,3065.5,3064.2,0.568]
[1765556675579,0.82824347,3065.5,3064.2,0.568]
[1765556675885,0.4564,3065.5,3064.2,1.14847529]
[1765556676090,0.4564,3065.5,3064.4,7.86874541]
[1765556676256,0.4564,3065.5,3064.4,0.58047529]
[1765556676585,0.4564,3065.5,3064.5,0.568]
[1765556677178,0.001,3066.4,3065.4,7.38097012]
[1765556677378,0.001,3066.4,3065.5,1.30609701]
[1765556677672,0.001,3066.4,3065.6,0.568]
[1765556677975,0.001,3066.4,3065.8,0.58047529]
[1765556678339,0.001,3066.4,3065.8,7.86874541]
[1765556678683,0.001,3066.4,3065.9,0.568]
[1765556678847,0.001,3066.4,3065.8,7.86874541]
[1765556679046,0.001,3066.4,3065.9,0.568]
[1765556679249,0.001,3066.4,3065.8,7.86874541]
[1765556679445,0.001,3066.4,3065.9,0.568]
[1765556679676,0.001,3066.4,3065.8,7.86874541]
[1765556679875,0.4574,3066.4,3065.7,3.26189777]
[1765556680175,0.4574,3066.4,3065.6,3.26200417]
[1765556680363,0.001,3066.4,3065.7,0.58047529]
[1765556680975,0.4564,3066.3,3065.7,1.14847529]
[1765556681179,0.4564,3066.3,3065.6,3.26200417]
[1765556681347,0.1954,3065.8,3065.6,3.26200417]
[1765556681543,0.4564,3066.3,3065.6,6.52400834]
[1765556681879,0.001,3066.4,3065.7,0.58047529]
[1765556682077,0.001,3066.4,3065.8,6.52358274]
[1765556682276,0.4564,3066.3,3065.8,3.82879137]
[1765556682476,0.001,3066.4,3065.8,7.09058274]
[1765556682677,0.001,3066.4,3065.8,10.35237411]
[1765556682975,0.001,3066.4,3065.8,10.87867513]
[1765556683178,0.001,3066.4,3065.9,0.567]
[1765556683392,0.001,3066.4,3065.8,6.52358274]
[1765556684009,0.1954,3065.9,3064.6,10.55128287]
[1765556684326,0.4564,3065.8,3064.6,3.26306318]
[1765556684451,11.033594,3065.7,3063.9,3.26377003]
[1765556684651,1.03687529,3065.8,3064.6,3.26303831]
[1765556684886,0.4564,3065.7,3064.6,3.26303831]
[1765556685188,1.23197004,3065.7,3064.6,6.52610689]
[1765556685353,1.23197004,3065.7,3064.6,3.26303831]
[1765556685564,0.4564,3065.6,3064.6,3.26303831]
[1765556685983,0.1954,3064.7,3064.6,3.26303831]
[1765556686275,0.1954,3064.7,3064.5,3.26317506]
[1765556686584,0.6518,3064.7,3064.5,3.26317506]
[1765556687104,1.03687529,3065.6,3064.5,9.78952518]
[1765556687303,0.96383606,3065.6,3064.5,6.52635012]
[1765556687467,0.4564,3065.5,3064.5,13.05270024]
[1765556687668,0.6518,3065.9,3064.6,0.58047529]
[1765556687866,3.91349051,3065.9,3064.6,7.86874541]
[1765556688162,0.4564,3065.8,3064.6,7.86874541]
[1765556688366,0.4564,3065.8,3064.9,7.26184856]
[1765556688569,0.1954,3066.2,3065.0,1.35023238]
[1765556688800,0.1954,3066.2,3065.0,0.78423238]
[1765556688965,0.4564,3066.1,3064.8,0.58047529]
[1765556689303,0.1954,3066.2,3065.0,0.405504]
[1765556689517,0.001,3066.4,3065.4,0.58047529]
[1765556689803,0.4574,3066.4,3065.4,0.58047529]
[1765556690004,0.4574,3066.4,3065.5,0.565]
[1765556690203,0.4574,3066.4,3064.7,6.52592422]
[1765556690204,3.41962287,3066.3,3064.7,6.52592422]
[1765556690514,0.58047529,3066.0,3064.7,0.565]
[1765556690665,0.03274087,3066.0,3064.4,6.5265631]
[1765556690861,0.4938,3065.9,3064.5,0.58047529]
[1765556691097,0.4938,3065.9,3064.4,9.78984465]
[1765556691261,0.4938,3065.9,3064.4,6.5265631]
[1765556691467,0.4938,3065.9,3064.5,0.58047529]
[1765556691867,0.4938,3065.9,3064.4,22.48237567]
[1765556692068,0.4938,3065.9,3064.5,0.405504]
[1765556692269,0.4938,3065.9,3064.7,0.58047529]
[1765556692566,0.4948,3066.4,3065.1,0.58047529]
[1765556692770,0.001,3066.4,3065.7,0.98597929]
[1765556693190,0.001,3066.4,3065.7,0.58047529]
[1765556693411,0.001,3066.4,3065.3,0.405504]
[1765556693572,0.001,3066.4,3065.4,0.565]
[1765556693896,0.4948,3066.4,3065.5,0.0326211]
[1765556694197,0.001,3066.4,3065.5,0.565]
[1765556694400,0.001,3066.4,3065.7,0.58047529]
[1765556694806,0.001,3066.4,3066.0,0.58047529]
[1765556694969,0.001,3066.4,3066.0,1.50960514]
[1765556695164,0.001,3066.4,3066.1,0.591804]
[1765556695471,0.001,3066.4,3066.2,0.564]
[1765556695682,0.001,3066.4,3066.2,0.7503]
[1765556696079,0.001,3066.4,3066.3,0.405504]
[1765556696283,0.001,3066.4,3066.3,0.591804]
[1765556696517,0.001,3066.4,3066.3,4.43353878]
[1765556696850,0.001,3066.8,3066.3,4.43353878]
[1765556696851,0.001,3066.8,3066.5,0.405504]
[1765556697133,0.001,3066.8,3066.6,0.58047529]
[1765556697310,0.001,3066.8,3066.6,1.14447529]
[1765556697482,0.001,3066.8,3066.7,0.405504]
[1765556697677,0.001,3066.8,3066.7,0.564]
[1765556697881,0.001,3066.8,3066.7,2.14133385]
[1765556698145,0.001,3067.0,3066.8,6.690656]
[1765556698451,0.001,3068.0,3067.0,6.52103032]
[1765556698452,0.1893,3067.8,3067.0,6.52103032]
[1765556698595,0.1893,3067.8,3067.1,0.58047529]
[1765556698980,0.1893,3067.8,3067.1,1.14347529]
[1765556699185,0.1893,3067.8,3067.0,6.52103032]
[1765556699506,0.1893,3067.8,3067.0,7.08403032]
[1765556699686,0.1893,3067.8,3067.0,8.11849084]
[1765556700282,0.4948,3068.0,3067.0,8.11849084]
[1765556700283,0.001,3068.0,3067.1,9.88110245]
[1765556700613,0.001,3068.0,3067.5,0.405504]
[1765556701216,0.001,3068.0,3067.6,9.88010245]
[1765556701717,0.4938,3069.3,3067.3,6.52039252]
[1765556701718,0.4938,3070.1,3068.7,0.405504]
[1765556701895,0.4938,3070.1,3068.9,0.405504]
[1765556702218,0.03274087,3070.0,3068.1,8.71082316]
[1765556702417,0.03274087,3070.0,3068.1,3.25932602]
[1765556702418,0.1893,3068.9,3068.1,3.25932602]
[1765556702623,0.1893,3068.9,3067.8,3.25964606]
[1765556702624,0.4938,3068.8,3067.8,3.25964606]
[1765556702782,0.4938,3068.8,3066.9,8.71082316]
[1765556703120,0.03274087,3068.7,3067.2,3.26021285]
[1765556703288,0.03274087,3068.7,3067.1,3.26036037]
[1765556703485,0.03274087,3068.7,3067.3,0.563]
[1765556703486,0.4938,3068.6,3067.3,0.563]
[1765556703794,0.4938,3068.6,3067.2,0.42948209]
[1765556704026,0.405504,3068.4,3066.7,0.98552985]
[1765556704322,0.4938,3068.3,3067.9,3.25952129]
[1765556704525,0.4938,3068.3,3067.4,0.58047529]
[1765556704702,0.03274087,3068.2,3067.2,3.26022723]
[1765556704898,0.03274087,3068.2,3067.0,3.82350486]
[1765556704899,0.03274087,3068.2,3066.6,3.26085178]
[1765556704900,7.468855,3068.1,3066.6,3.26085178]
[1765556705102,0.1893,3067.1,3066.2,3.26136586]
[1765556705304,0.1893,3067.1,3065.9,3.26167777]
[1765556705514,0.1893,3067.1,3066.1,15.23373067]
[1765556705712,0.1893,3067.1,3066.2,2.08637307]
[1765556705914,0.1893,3067.4,3066.2,2.75854836]
[1765556706127,0.4938,3067.3,3066.2,1.52337307]
[1765556706287,0.405504,3067.2,3066.0,3.2615078]
[1765556706489,0.405504,3067.2,3064.8,3.26282547]
[1765556706490,0.405504,3066.8,3065.0,9.78792822]
[1765556706720,0.405504,3066.8,3065.1,1.14347529]
[1765556706965,0.4938,3066.7,3065.1,1.14347529]
[1765556707166,0.405504,3066.6,3065.1,2.52722267]
[1765556707340,0.405504,3066.6,3065.1,0.563]
[1765556707542,0.4938,3066.5,3065.1,0.563]
[1765556707939,0.405504,3066.3,3065.0,3.26264274]
[1765556708354,0.4938,3066.2,3065.0,6.52528548]
[1765556708665,6.52294444,3066.1,3065.1,0.65252855]
[1765556708827,0.1893,3065.2,3064.8,6.52563094]
[1765556709230,0.1893,3065.2,3064.4,3.26321802]
[1765556709231,0.6831,3065.2,3064.4,3.26321802]
[1765556709445,0.6831,3065.2,3063.5,3.26423514]
[1765556709446,0.1893,3064.5,3063.8,6.52784124]
[1765556709641,0.4938,3065.1,3063.9,0.59563814]
[1765556709932,0.4938,3065.1,3063.9,1.14347529]
[1765556710135,0.4938,3065.1,3063.9,0.563]
[1765556710353,0.4938,3065.1,3063.9,1.14347529]
[1765556710689,0.4938,3065.1,3064.0,6.52741514]
[1765556711028,0.4938,3065.1,3064.0,10.35412271]
[1765556711229,3.75637596,3065.1,3063.9,6.52762092]
[1765556711530,0.405504,3064.8,3063.6,3.26404719]
[1765556711744,0.405504,3064.8,3063.2,0.563]
[1765556711928,3.042239,3064.7,3063.7,3.26402058]
[1765556712132,0.6831,3064.7,3063.6,3.26404445]
[1765556712365,0.4938,3064.6,3063.2,3.2645241]
[1765556712531,6.52635012,3064.5,3063.3,3.26445336]
[1765556712728,6.52635012,3064.5,3063.3,6.52890672]
[1765556712729,3.26317506,3064.5,3063.3,6.52890672]
[1765556712936,0.4938,3064.4,3063.3,6.52890672]
[1765556713430,0.4938,3064.4,3063.4,0.58047529]
[1765556713664,0.1893,3064.7,3063.4,0.58047529]
[1765556713963,0.1893,3064.7,3063.5,1.36382887]
[1765556714165,0.4938,3064.6,3063.6,0.563]